[Event "87th Tata Steel Masters 2025"]
[White "Warmerdam,Max"]
[Black "Sarana,Alexey"]
[Site "Wijk aan Zee"]
[Round "1.7"]
[Annotator "TA"]
[Result "1/2-1/2"]
[Date "2025.01.18"]
[WhiteElo "2646"]
[BlackElo "2677"]
[PlyCount "102"]
[TimeControl "60"]

{[%evp 9,102,40,31,-23,-20,-14,0,-4,15,7,31,10,0,0,8,12,14,19,16,0,7,4,12,0,0,19,8,-12,0,0,0,0,13,0,0,0,0,0,18,0,4,0,0,-1,0,-25,0,0,0,0,0,0,0,-40,-6,-29,-31,-31,-35,-41,0,0,0,0,0,0,0,0,0,0,0,0,0,0,0,0,0,0,0,0,0,0,0,0,0,0,0,0,0,0,0,0,0,0,0]} 1. Nf3 {[%emt 0:0:4]} d5 {[%emt 0:0:12]} 2. g3 {[%emt 0:0:6]} c6 {[%emt 0:0:23]} 3. Bg2 {[%emt 0:0:10]} Bf5 {[%emt 0:0:38]} 4. c4 {[%emt 0:1:25]} dxc4 {[%emt 0:0:16]} 5. Na3 {[%emt 0:7:30]} e5 $1 {[%emt 0:1:47]} 6. Nc2 {[%emt 0:12:9]} (6. Nxe5 $2 Bxa3 7. bxa3 Qd4 8. Nxc4 Qxc4 $17 (8... Qxa1 9. Nd6+ Kf8 10. Nxf5 $16 ))(6. Nxc4 $14 e4 7. Nfe5 )e4 $11 {[%emt 0:15:45]} 7. Nh4 $1 {[%emt 0:9:37]} Be6 {[%emt 0:6:43] Hoping for ...g5.} 8. Bxe4 {[%emt 0:5:49]} Nf6 {[%emt 0:3:2]} 9. Bg2 $1 {[%emt 0:1:2][%cal Yb2b3]} Bc5 {[%emt 0:0:25][%cal Yf8c5,Yc5d4,Yd4b6][%mdl 32]} 10. O-O {[%emt 0:5:51][%cal Yb2b3]} O-O {[%emt 0:3:23]} 11. Ne3 {[%emt 0:4:21]} Na6 {[%emt 0:5:47]} 12. b3 {[%emt 0:6:23]} Bd4 {[%emt 0:12:48]} 13. Rb1 {[%emt 0:2:26]} cxb3 {[%emt 0:0:41]} 14. axb3 {[%emt 0:0:17]} Nb4 {[%emt 0:2:55]} 15. Nef5 {[%emt 0:7:39]} Bb6 {[%emt 0:3:3]} 16. Bb2 {[%emt 0:5:46]} g6 {[%emt 0:4:35]} 17. Ne3 {[%emt 0:8:53]} Bd4 {[%emt 0:3:7]} 18. Qc1 {[%emt 0:0:54]} a5 {[%emt 0:3:55]} 19. Nf3 {[%emt 0:3:32]} Bxb2 {[%emt 0:0:22]} 20. Qxb2 {[%emt 0:0:9]} Re8 {[%emt 0:1:34]} 21. Rfc1 {[%emt 0:1:23]} Ng4 {[%emt 0:7:44]} 22. Nc4 {[%emt 0:6:46]} Qe7 {[%emt 0:9:8]} 23. d3 {[%emt 0:1:42]} Bd5 {[%emt 0:5:7]} 24. h3 {[%emt 0:6:0]} Nf6 {[%emt 0:3:41]} 25. Ne3 {[%emt 0:0:58]} Rad8 {[%emt 0:1:26]} 26. Ra1 {[%emt 0:8:31]} b6 {[%emt 0:0:37]} 27. d4 {[%emt 0:0:28]} h5 {[%emt 0:8:8]} 28. Nxd5 {[%emt 0:0:33]} cxd5 {[%emt 0:0:8]} 29. Ne5 {[%emt 0:0:23]} Rc8 {[%emt 0:0:10]} 30. Qd2 {[%emt 0:1:47]} Kg7 {[%emt 0:1:21]} 31. Rc3 {[%emt 0:1:35]} Nd7 {[%emt 0:3:22]} 32. Nxd7 {[%emt 0:1:30]} (32. Rxc8 {is interesting.} Rxc8 33. Nxd7 Rc2 34. Qe3 )Rxc3 {[%emt 0:0:43]} 33. Qxc3 {[%emt 0:0:1]} Qxd7 {[%emt 0:0:4]} 34. Qd2 {[%emt 0:0:19]} Rc8 {[%emt 0:1:59]} 35. Rc1 {[%emt 0:0:7] Prevents Rc2} Rc6 {[%emt 0:0:55]} 36. Rc3 {[%emt 0:1:31]} Qc7 {[%emt 0:1:4]} 37. Rxc6 {[%emt 0:0:5]} Qxc6 {[%emt 0:0:1][%mdl 4096] Endgame KQB-KQN} 38. e3 {[%emt 0:0:42]} Kf6 {[%emt 0:1:37]} 39. Qd1 {[%emt 0:0:30]} Qc3 {[%emt 0:0:42]} 40. Bf1 {[%emt 0:0:56]} Qc2 {[%emt 0:0:35]} 41. Qf3+ {[%emt 0:1:45]} Qf5 {[%emt 0:2:7]} 42. Qe2 {[%emt 0:7:16]} Qd7 {[%emt 0:1:33]} 43. Qf3+ {[%emt 0:6:13]} Qf5 {[%emt 0:1:3]} 44. Qe2 {[%emt 0:0:15]} Qe6 {[%emt 0:2:11]} 45. Qf3+ {[%emt 0:1:11]} Ke7 {[%emt 0:0:7]} 46. g4 {[%emt 0:1:44]} hxg4 {[%emt 0:1:31]} 47. hxg4 {[%emt 0:0:4]} Kf8 {[%emt 0:7:26]} 48. Qf4 {[%emt 0:10:9]} Na2 {[%emt 0:1:50]} 49. Bg2 {[%emt 0:4:53]} Kg7 {[%emt 0:1:7]} 50. Qc7 {[%emt 0:1:19]} Nb4 {[%emt 0:2:9]} 51. Bf3 {[%emt 0:0:57]} Nd3 {[%emt 0:0:35]} 1/2-1/2

[Event "87th Tata Steel Masters 2025"]
[White "Abdusattorov,Nodirbek"]
[Black "Mendonca,Leon Luke"]
[Site "Wijk aan Zee"]
[Round "2.1"]
[Annotator "TA"]
[Result "1-0"]
[Date "2025.01.19"]
[WhiteElo "2768"]
[BlackElo "2639"]
[PlyCount "61"]
[TimeControl "60"]

{[%evp 10,61,0,-28,-33,-32,1,0,0,0,-7,-18,0,0,0,0,20,0,78,70,89,80,75,42,49,73,116,143,209,201,172,188,214,202,219,219,230,255,308,320,338,338,625,617,713,693,854,845,1698,1153,1763,1700,1477,563]} 1. e4 {[%emt 0:0:9][%cal Ye2e4,Ye4e5][%mdl 32]} e6 {[%emt 0:1:11]} 2. d4 {[%emt 0:0:11]} d5 {[%emt 0:0:6]} 3. e5 {[%emt 0:0:15]} c5 {[%emt 0:0:7]} 4. c3 {[%emt 0:0:8]} Nc6 {[%emt 0:0:54]} 5. Nf3 {[%emt 0:0:11]} Qb6 {[%emt 0:1:18]} 6. a4 {[%emt 0:0:18]} cxd4 {[%emt 0:9:38]} 7. cxd4 {[%emt 0:0:10]} Nh6 {[%emt 0:7:27]} 8. Bb5 {[%emt 0:5:2]} Nf5 {[%emt 0:1:48]} 9. Nc3 {[%emt 0:4:4]} Bd7 {[%emt 0:8:44][%cal Rf5d4]} 10. O-O {[%emt 0:0:33][%cal Ya4a5]} a6 {[%emt 0:21:11]} 11. Bxc6 {[%emt 0:3:15]} Bxc6 {[%emt 0:1:56]} 12. Ne2 {[%emt 0:1:16]} Be7 {[%emt 0:7:32]} 13. b3 {[%emt 0:6:15]} O-O-O {[%emt 0:12:21]} (13... Rc8 $11 )14. Bd2 {[%emt 0:10:49]} Kb8 {[%emt 0:6:4] [#]} 15. b4 $1 {[%emt 0:1:56][%cal Yb4b5]} Rc8 {[%emt 0:2:3][%cal Yc6d7]} (15... h5 16. Rb1 )16. Rb1 {[%emt 0:12:51][%cal Yb4b5]} Bd7 {[%emt 0:0:35] [#]} 17. b5 $1 {[%emt 0:0:12] Prevents Qc6} axb5 {[%emt 0:1:4]} (17... a5 18. Qe1 )18. axb5 {[%emt 0:0:24]} Rc4 {[%emt 0:1:41] [#]} (18... Bxb5 $2 {perishes.} 19. Qb3 $18 )(18... h5 $16 )19. Qb3 $1 $18 {[%emt 0:1:46]} g5 {[%emt 0:12:37]} 20. h3 {[%emt 0:7:33][%cal Yg2g4]} (20. Nxg5 Nxd4 21. Nxd4 Qxd4 $16 )h5 {[%emt 0:0:54]} 21. Bxg5 {[%emt 0:0:7]} Rb4 {[%emt 0:4:2]} 22. Qa2 {[%emt 0:0:58]} Rxb5 {[%emt 0:0:54] [#]} 23. Ng3 $1 {[%emt 0:6:24]} ({Resist} 23. Bxe7 $6 Nxe7 24. Ra1 Rc8 $16 )Bxg5 {[%emt 0:5:11]} 24. Nxf5 {[%emt 0:0:9]} (24. Nxg5 Nxg3 25. fxg3 Qxd4+ 26. Kh2 Rxb1 27. Qxb1 Rf8 $18 )exf5 {[%emt 0:0:36]} 25. Nxg5 {[%emt 0:0:10]} Qxd4 $2 {[%emt 0:0:31]} (25... Qa5 26. Qxa5 Rxa5 27. Nxf7 Rg8 )26. Ra1 {[%emt 0:6:29]} Kc7 {[%emt 0:0:34]} 27. Nxf7 {[%emt 0:1:40]} Rg8 {[%emt 0:0:57]} 28. Nd6 {[%emt 0:0:41] Strongly threatening Rfc1+.} Rb4 {[%emt 0:1:57]} 29. Qa5+ {[%emt 0:1:49]} Qb6 {[%emt 0:0:18]} 30. Qxd5 {[%emt 0:0:42] White wants to mate with Rfc1+.} Rd8 {[%emt 0:0:47]} 31. Nc4 {[%emt 0:0:51]} (31. Rfd1 $142 Kb8 32. Nf7 )1-0

[Event "87th Tata Steel Masters 2025"]
[White "Caruana,Fabiano"]
[Black "Van Foreest,Jorden"]
[Site "Wijk aan Zee"]
[Round "2.2"]
[Annotator "TA"]
[Result "1-0"]
[Date "2025.01.19"]
[WhiteElo "2803"]
[BlackElo "2680"]
[PlyCount "67"]
[TimeControl "60"]

{[%evp 9,67,0,6,2,16,11,18,0,8,-8,4,0,0,0,0,-24,-22,-13,-26,-41,-16,-13,-8,-13,-18,-39,0,7,2,0,0,0,0,0,0,0,46,54,55,51,51,53,41,57,101,57,175,107,164,166,248,154,341,338,334,344,332,322,331,333]} 1. d4 {[%emt 0:0:6]} d5 {[%emt 0:0:22]} 2. Nf3 {[%emt 0:0:6]} e6 {[%emt 0:0:14]} 3. Bf4 {[%emt 0:5:6]} c5 {[%emt 0:0:20]} 4. e3 {[%emt 0:2:24]} Nc6 {[%emt 0:1:0]} 5. c3 {[%emt 0:1:13]} Bd6 {[%emt 0:2:53]} 6. Bg3 {[%emt 0:1:3]} Nh6 {[%emt 0:9:25]} 7. Bd3 {[%emt 0:3:48]} O-O {[%emt 0:1:29]} 8. Nbd2 {[%emt 0:4:19]} b6 {[%emt 0:12:55]} 9. Qe2 {[%emt 0:9:42]} Bb7 {[%emt 0:7:46]} 10. dxc5 {[%emt 0:12:51]} bxc5 {[%emt 0:1:34]} 11. e4 {[%emt 0:0:6]} Rb8 {[%emt 0:10:31]} 12. e5 {[%emt 0:8:26]} Bc7 {[%emt 0:3:24]} 13. O-O {[%emt 0:1:44]} Nf5 {[%emt 0:2:0]} 14. Bf4 {[%emt 0:8:0]} c4 {[%emt 0:6:18] Wards off Nb3} 15. Bc2 {[%emt 0:2:40]} Ba6 {[%emt 0:3:12]} 16. Rab1 {[%emt 0:6:3]} d4 {[%emt 0:2:35]} 17. Nxc4 {[%emt 0:3:17]} Qd5 {[%emt 0:9:54]} (17... Na5 $15 18. Bd3 dxc3 )18. b3 $11 {[%emt 0:5:18]} dxc3 {[%emt 0:0:7] And now ...Ncd4 would win.} 19. Rfd1 {[%emt 0:1:42]} Qc5 $1 {[%emt 0:0:51]} 20. Bxf5 {[%emt 0:9:4]} exf5 {[%emt 0:0:12]} 21. Qc2 $1 {[%emt 0:0:49][%csl Yc3,Yf5]} Bxc4 {[%emt 0:12:9]} 22. Qxc3 $1 {[%emt 0:1:11][%cal Yb1c1]} Bb6 {[%emt 0:2:59]} 23. Be3 $14 {[%emt 0:2:45]} Qb4 $1 {[%emt 0:4:5]} 24. Qxc4 {[%emt 0:1:47]} Qxc4 {[%emt 0:0:11]} 25. bxc4 {[%emt 0:0:3]} Bxe3 {[%emt 0:0:11]} 26. fxe3 {[%emt 0:0:4]} h6 {[%emt 0:10:26]} 27. Rb5 {[%emt 0:2:21]} Rfc8 {[%emt 0:0:18] [#]} ({Black should play} 27... a6 $14 28. Rxb8 Rxb8 )28. Kf2 {[%emt 0:4:39]} ({Better is} 28. Rd6 $1 $18 {[%cal Rd6c6] Hoping for Rxc6!.} Nb4 29. a3 )Kf8 {[%emt 0:1:24] [#]} (28... a6 $16 {is a better defense.} 29. Rxb8 Rxb8 )29. Rd6 $1 $18 {[%emt 0:2:33][%cal Yd6c6]} Nd8 {[%emt 0:5:7]} (29... Nb4 $142 30. Nd4 Nxa2 )30. Nd4 {[%emt 0:0:43]} g6 $2 {[%emt 0:0:38]} (30... Ra8 $16 31. Rbd5 (31. Nxf5 Rxc4 32. Ra6 Nc6 $16 )Nb7 )31. Rxb8 {[%emt 0:2:55]} Rxb8 {[%emt 0:0:5]} 32. c5 {[%emt 0:0:18][%cal Yc4c5,Yc5c6][%mdl 32]} Nb7 {[%emt 0:1:13][%cal Yb7c5]} 33. Rd5 {[%emt 0:0:47]} Nd8 {[%emt 0:0:39]} 34. c6 {[%emt 0:0:14]} 1-0

[Event "87th Tata Steel Masters 2025"]
[White "Keymer,Vincent"]
[Black "Warmerdam,Max"]
[Site "Wijk aan Zee"]
[Round "2.3"]
[Annotator "TA"]
[Result "1/2-1/2"]
[Date "2025.01.19"]
[WhiteElo "2733"]
[BlackElo "2646"]
[PlyCount "133"]
[TimeControl "60"]

{[%evp 57,133,-419,-450,-435,-202,-214,-191,-171,-169,-343,-159,-195,-175,-174,-97,-116,-107,-100,-102,-107,-106,-194,-69,-102,-64,-125,-131,-130,-123,-134,-150,-173,-160,-173,-130,-220,-217,-182,-166,-237,-87,-107,-31,-31,-34,-205,-210,-172,-8,-8,-8,-8,0,0,0,0,0,-8,-8,-8,-8,-8,-8,-8,0,-8,0,-8,0,-8,0,0,0,-8,0,-8,0,-8]} 1. Nf3 {[%emt 0:0:4]} d5 {[%emt 0:0:10]} 2. b3 {[%emt 0:0:3]} c5 {[%emt 0:0:23]} 3. e3 {[%emt 0:0:51]} g6 {[%emt 0:0:15]} 4. Bb2 {[%emt 0:0:5]} Nf6 {[%emt 0:0:5]} 5. c4 {[%emt 0:0:44]} dxc4 {[%emt 0:0:7]} 6. bxc4 {[%emt 0:0:29]} Bg7 {[%emt 0:0:6]} 7. Be2 {[%emt 0:1:34]} O-O {[%emt 0:0:8]} 8. O-O {[%emt 0:0:22]} b6 {[%emt 0:0:11]} 9. d3 {[%emt 0:2:56]} Bb7 {[%emt 0:0:27]} 10. Nbd2 {[%emt 0:2:7]} Nc6 {[%emt 0:0:45]} 11. Ne5 {[%emt 0:5:14]} Qc7 {[%emt 0:13:16]} 12. f4 {[%emt 0:9:33]} Rad8 {[%emt 0:5:38]} 13. Qb3 {[%emt 0:14:41]} Ne8 {[%emt 0:14:26]} 14. Ndf3 {[%emt 0:5:4]} Na5 {[%emt 0:8:9]} 15. Qc2 {[%emt 0:1:50]} Nd6 {[%emt 0:1:54]} 16. e4 {[%emt 0:7:21]} f6 {[%emt 0:9:9]} 17. Ng4 {[%emt 0:0:30]} Nc6 {[%emt 0:0:32]} 18. Rae1 {[%emt 0:13:50]} Nf7 {[%emt 0:11:11]} 19. f5 {[%emt 0:9:6]} gxf5 {[%emt 0:20:52]} 20. exf5 {[%emt 0:0:1]} Kh8 {[%emt 0:2:10]} 21. Qb3 {[%emt 0:8:14]} Qd7 {[%emt 0:4:37]} 22. Ne3 {[%emt 0:0:39]} Bh6 {[%emt 0:0:24]} 23. Nd5 {[%emt 0:3:46]} Nd6 {[%emt 0:4:34]} 24. g4 {[%emt 0:4:26]} Rg8 {[%emt 0:3:24]} 25. Nh4 {[%emt 0:0:26]} Nb4 {[%emt 0:3:48]} 26. Bf3 {[%emt 0:6:14]} Nxd5 {[%emt 0:1:44]} 27. cxd5 {[%emt 0:0:1]} Rg7 {[%emt 0:1:50]} 28. Re6 {[%emt 0:10:5]} Nf7 {[%emt 0:1:7]} 29. Rc6 $2 {[%emt 0:3:57][%mdl 8192]} (29. Rfe1 $1 $11 {and White stays safe.} Ng5 (29... Bxd5 30. Bxd5 Qxd5 $15 ))Be3+ $19 {[%emt 0:1:59]} 30. Kh1 {[%emt 0:0:10]} Bxc6 {[%emt 0:0:37]} (30... Nh6 $142 {[%cal Yh6g4]} 31. Qc2 Nxg4 )31. dxc6 $19 {[%emt 0:0:1]} Qxd3 {[%emt 0:0:8]} 32. Qxd3 {[%emt 0:1:34]} Rxd3 {[%emt 0:0:2]} 33. c7 $2 {[%emt 0:0:28]} (33. Ng2 {was forced.} Bd4 34. c7 )Nd6 {[%emt 0:1:5]} (33... Rg8 $19 34. Ng2 Bh6 )34. Ng2 $17 {[%emt 0:0:30]} Bd4 {[%emt 0:0:46]} 35. Bc1 {[%emt 0:0:21]} e5 {[%emt 0:1:18]} (35... Rg8 $19 36. Nf4 c4 (36... Rxf3 37. Rxf3 Rxg4 38. Rg3 $17 ))36. fxe6 $17 {[%emt 0:0:21]} Rxc7 {[%emt 0:0:2]} 37. Nf4 {[%emt 0:0:6]} Rxf3 $1 {[%emt 0:0:20]} (37... Rc3 $6 38. Nd5 Rxc1 39. Rxc1 $11 )38. Rxf3 {[%emt 0:0:1]} Re7 {[%emt 0:0:9]} 39. Rf1 {[%emt 0:1:38]} (39. Kg2 $17 {might work better.} )Nc4 {[%emt 0:1:8]} (39... Nb5 $19 40. Re1 Nc7 )40. Re1 {[%emt 0:0:33]} Ne5 {[%emt 0:0:36]} 41. Kg2 {[%emt 0:11:32]} ({White should play} 41. h4 $1 $15 )Re8 $1 $17 {[%emt 0:5:43]} (41... Nxg4 $6 42. Nd5 Re8 43. Nc7 $11 )42. h3 {[%emt 0:4:26]} Ng6 {[%emt 0:6:8]} 43. Nxg6+ {[%emt 0:16:11]} hxg6 {[%emt 0:0:18]} 44. h4 {[%emt 0:0:9]} b5 {[%emt 0:7:36]} 45. Bf4 {[%emt 0:1:47]} Kg7 {[%emt 0:6:1]} 46. Bd6 {[%emt 0:5:23]} (46. Bc7 $17 )a5 $19 {[%emt 0:6:29]} 47. e7 {[%emt 0:0:34]} Kf7 {[%emt 0:8:47]} 48. Kf3 {[%emt 0:1:12]} (48. h5 $142 )c4 {[%emt 0:2:33]} (48... a4 $19 49. Rc1 Rc8 )49. h5 $17 {[%emt 0:2:54] [#]} gxh5 {[%emt 0:1:8]} (49... Bc3 $1 $17 {[%cal Rc3e1]} 50. hxg6+ Kxg6 )50. gxh5 $15 {[%emt 0:0:1]} Bc3 {[%emt 0:0:39]} 51. Re2 $2 {[%emt 0:5:35]} (51. Rb1 $1 $15 )b4 $19 {[%emt 0:5:49]} 52. h6 {[%emt 0:3:31] [#]} b3 $2 {[%emt 0:2:54]} (52... a4 $1 $19 {and ...b3 should not be overlooked} 53. h7 b3 54. axb3 axb3 )53. axb3 $11 {[%emt 0:0:39]} cxb3 {[%emt 0:0:1]} 54. Ba3 {[%emt 0:0:9]} Kg6 {[%emt 0:0:58]} 55. Rh2 {[%emt 0:3:18]} Kh7 {[%emt 0:2:10]} 56. Kg4 {[%emt 0:0:39]} Be5 {[%emt 0:0:34]} 57. Rh1 {[%emt 0:0:10]} Kg6 {[%emt 0:0:19]} 58. h7 {[%emt 0:0:34]} f5+ {[%emt 0:0:8]} 59. Kf3 {[%emt 0:0:1]} a4 {[%emt 0:1:12]} 60. Ke3 {[%emt 0:1:5]} Kf7 {[%emt 0:0:34]} 61. Rh5 {[%emt 0:15:40]} Kg6 {[%emt 0:15:16]} 62. Rh1 {[%emt 0:0:1]} Bf6 {[%emt 0:0:46]} 63. Kd3 {[%emt 0:0:40]} Rc8 {[%emt 0:0:39]} 64. Rc1 {[%emt 0:0:43]} Re8 {[%emt 0:0:18]} 65. Rh1 {[%emt 0:0:2]} Kf7 {[%emt 0:0:20]} 66. Rf1 {[%emt 0:0:39]} Kg6 {[%emt 0:0:57]} ({Of course not} 66... Bxe7 67. Bb2 $14 (67. Rxf5+ $2 {is the wrong capture.} Kg6 $19 ))67. Rh1 1/2-1/2

[Event "87th Tata Steel Masters 2025"]
[White "Fedoseev,Vladimir"]
[Black "Gukesh,Dommaraju"]
[Site "Wijk aan Zee"]
[Round "2.4"]
[Annotator "TA"]
[Result "1/2-1/2"]
[Date "2025.01.19"]
[WhiteElo "2717"]
[BlackElo "2777"]
[PlyCount "86"]
[TimeControl "60"]

{[%evp 9,86,24,55,55,35,34,47,34,45,47,41,39,23,7,22,8,22,23,24,12,15,18,17,24,14,24,25,28,22,37,39,44,37,19,20,29,52,43,49,46,41,37,43,27,50,15,43,0,0,0,16,28,25,25,8,0,0,0,0,0,0,0,0,0,2,0,0,0,0,0,0,0,0,0,0,0,0,0,0]} 1. d4 {[%emt 0:0:26]} Nf6 {[%emt 0:0:8]} 2. c4 {[%emt 0:0:7]} e6 {[%emt 0:0:6]} 3. Nf3 {[%emt 0:0:8]} d5 {[%emt 0:0:7]} 4. Nc3 {[%emt 0:0:7]} dxc4 {[%emt 0:0:6]} 5. e4 {[%emt 0:1:23][%cal Ye2e4,Ye4e5][%mdl 32]} b5 {[%emt 0:0:8]} 6. e5 $1 {[%emt 0:0:16]} Nd5 {[%emt 0:0:7]} 7. Nxb5 {[%emt 0:0:6]} Nb6 {[%emt 0:0:5]} 8. Nc3 {[%emt 0:4:22]} Nc6 {[%emt 0:12:27][%cal Yb8c6,Yc6e7,Ye7f5][%mdl 32]} 9. Be3 {[%emt 0:0:35]} Bb7 {[%emt 0:12:58]} 10. Be2 {[%emt 0:4:3]} Ne7 {[%emt 0:0:26]} 11. b3 {[%emt 0:8:27]} cxb3 {[%emt 0:4:27]} 12. Qxb3 {[%emt 0:0:53]} Nf5 {[%emt 0:1:44]} 13. Bb5+ {[%emt 0:4:59]} c6 {[%emt 0:0:8]} 14. Bd3 {[%emt 0:0:11]} Be7 {[%emt 0:9:7]} 15. O-O {[%emt 0:8:12]} Nxe3 {[%emt 0:4:24]} 16. fxe3 {[%emt 0:0:7]} O-O {[%emt 0:0:33]} 17. Ne4 {[%emt 0:9:56]} Rb8 {[%emt 0:1:18]} 18. Nc5 {[%emt 0:3:43]} Bxc5 {[%emt 0:9:56]} 19. dxc5 {[%emt 0:0:44]} Nd5 $1 {[%emt 0:0:42]} 20. Qa3 {[%emt 0:5:57] Prevents Ba6} a5 {[%emt 0:0:14][%cal Yd5b4]} 21. Rad1 {[%emt 0:3:31]} Qc7 {[%emt 0:4:39]} 22. Bc4 {[%emt 0:4:34]} Nb4 {[%emt 0:17:5]} 23. Rd6 {[%emt 0:6:4]} Ba6 {[%emt 0:1:51]} 24. Bxa6 {[%emt 0:3:40]} Nxa6 {[%emt 0:0:2]} 25. Rc1 {[%emt 0:2:29]} Nb4 {[%emt 0:6:24] Prevents Qd3} 26. h3 {[%emt 0:4:41]} Qa7 {[%emt 0:8:22]} 27. e4 {[%emt 0:12:59]} Qa6 {[%emt 0:1:58]} 28. Kf2 {[%emt 0:2:23] Dodges Qe2+} (28. Nd4 $5 )h6 {[%emt 0:4:41]} 29. Rc3 {[%emt 0:1:21]} a4 {[%emt 0:2:17]} 30. Rd4 {[%emt 0:1:17]} Qb5 $1 {[%emt 0:0:10]} 31. Rcc4 {[%emt 0:0:47]} Na6 {[%emt 0:0:7]} 32. Kg3 {[%emt 0:0:22][%cal Yc4c2]} Rfd8 {[%emt 0:2:6]} 33. Rxa4 {[%emt 0:5:55]} Rxd4 {[%emt 0:0:50]} (33... Nxc5 $2 {too greedy.} 34. Ra5 Nxe4+ 35. Rxe4 $18 )34. Nxd4 {[%emt 0:0:40]} Qxc5 {[%emt 0:0:6]} 35. Qxc5 {[%emt 0:2:3]} Nxc5 {[%emt 0:0:3]} 36. Nxc6 $11 {[%emt 0:1:25][%mdl 4096] Endgame KRN-KRN. White is a pawn up.} Rb6 {[%emt 0:1:11]} 37. Ne7+ {[%emt 0:3:36]} Kf8 {[%emt 0:1:1]} 38. Rc4 {[%emt 0:0:6]} Nxe4+ {[%emt 0:0:47]} 39. Rxe4 {[%emt 0:0:14]} Kxe7 {[%emt 0:0:1]} 40. Rg4 {[%emt 0:3:53]} g6 {[%emt 0:2:17]} 41. Re4 {[%emt 0:51:48]} Rb1 {[%emt 0:10:51]} 42. h4 {[%emt 0:0:0]} Kf8 {[%emt 0:2:37]} 43. Kf3 {[%emt 0:0:0]} Ke7 {[%emt 0:1:23]} 1/2-1/2

[Event "87th Tata Steel Masters 2025"]
[White "Harikrishna,Pentala"]
[Black "Praggnanandhaa,Rameshbabu"]
[Site "Wijk aan Zee"]
[Round "2.5"]
[Annotator "TA"]
[Result "0-1"]
[Date "2025.01.19"]
[WhiteElo "2695"]
[BlackElo "2741"]
[PlyCount "110"]
[TimeControl "60"]

{[%evp 11,110,26,22,25,33,20,41,29,35,37,33,25,27,20,25,9,19,12,19,0,6,-21,0,-16,-6,-12,13,0,0,6,4,-28,-29,-18,0,-4,0,0,0,-87,-85,-104,-88,-99,-50,-32,-44,-49,-54,-68,-48,-50,-60,-47,-41,-41,-41,-43,-41,-41,-41,-41,-41,-46,-47,-58,-62,-71,-82,-126,-126,-126,-126,-150,-150,-150,-156,-205,-200,-185,-156,-156,-156,-210,-217,-225,-226,-384,-384,-384,-376,-384,-384,-384,-384,-572,-539,-511,-504,-602,-439]} 1. e4 {[%emt 0:0:8]} c5 {[%emt 0:1:2]} 2. Nf3 {[%emt 0:0:7]} Nc6 {[%emt 0:0:7][%cal Yb8c6,Yc6d4,Yd4f3][%mdl 32]} 3. Bb5 {[%emt 0:0:9]} Nf6 {[%emt 0:0:13]} 4. Nc3 {[%emt 0:0:49]} Qc7 {[%emt 0:0:21]} 5. O-O {[%emt 0:0:33]} Nd4 {[%emt 0:0:15]} 6. Re1 {[%emt 0:0:38]} a6 {[%emt 0:0:15]} 7. Bf1 {[%emt 0:0:55]} Ng4 {[%emt 0:0:25] ( -> ...Nxf3+)} 8. g3 {[%emt 0:2:6]} Nxf3+ $1 {[%emt 0:0:57]} 9. Qxf3 {[%emt 0:0:7]} Ne5 {[%emt 0:0:4]} 10. Qe2 {[%emt 0:2:3]} e6 {[%emt 0:0:33] Prevents Nd5} 11. d3 {[%emt 0:3:22]} d6 {[%emt 0:7:21]} 12. Be3 {[%emt 0:7:14]} Nc6 {[%emt 0:9:23]} 13. f4 {[%emt 0:5:27]} Be7 {[%emt 0:0:37]} 14. Qf2 {[%emt 0:2:35]} O-O {[%emt 0:12:43]} 15. Bg2 {[%emt 0:3:52]} Bd7 {[%emt 0:0:31]} 16. g4 {[%emt 0:5:45]} b5 {[%emt 0:6:8]} 17. h4 {[%emt 0:15:56] [#]} Nd4 $1 {[%emt 0:8:14]} 18. Rac1 {[%emt 0:2:11][%cal Yc3e2]} Rae8 {[%emt 0:11:43]} 19. Ne2 {[%emt 0:4:9]} Nxe2+ {[%emt 0:3:29]} 20. Rxe2 {[%emt 0:0:6]} d5 {[%emt 0:2:16]} 21. g5 {[%emt 0:7:3]} d4 {[%emt 0:14:43]} 22. Bd2 {[%emt 0:0:11]} c4 {[%emt 0:0:10]} 23. c3 {[%emt 0:2:9]} dxc3 {[%emt 0:4:59]} 24. Rxc3 {[%emt 0:0:27]} f6 {[%emt 0:0:55]} 25. g6 {[%emt 0:5:36]} hxg6 $17 {[%emt 0:1:16][%cal Yg6g5]} 26. dxc4 {[%emt 0:0:39]} bxc4 {[%emt 0:0:49]} 27. b3 {[%emt 0:4:14]} Bc5 {[%emt 0:4:45]} ({Black should try} 27... Qa5 $17 {and ...Bc5 should not be overlooked} 28. Rc2 Qh5 )28. Be3 $15 {[%emt 0:1:34]} Bxe3 {[%emt 0:0:5]} 29. Rexe3 {[%emt 0:3:49] [#]} g5 $1 {[%emt 0:3:8]} 30. f5 {[%emt 0:1:0]} (30. Red3 Rf7 )Qf4 {[%emt 0:8:24]} 31. hxg5 {[%emt 0:3:56]} Qxf2+ {[%emt 0:1:4]} (31... fxg5 {is more complex.} 32. bxc4 exf5 33. exf5 Bxf5 34. c5 Rxe3 35. Qxe3 Kf7 )32. Kxf2 {[%emt 0:0:11]} cxb3 {[%emt 0:0:30]} (32... fxg5 33. Rxc4 exf5 34. exf5 Rxf5+ (34... Bxf5 35. Rxe8 Rxe8 36. Rc5 $11 )35. Bf3 $17 )(32... exf5 33. exf5 Bxf5 34. Bd5+ (34. bxc4 Rd8 $11 )Kh7 35. Rxe8 (35. bxc4 fxg5 36. Rxe8 Rxe8 $11 )(35. Bxc4 Rd8 $11 )Rxe8 36. Bxc4 $14 (36. Rxc4 fxg5 37. Rc5 Rf8 $15 ))33. axb3 {[%emt 0:6:51]} fxg5 {[%emt 0:0:9]} 34. Rc7 {[%emt 0:1:44]} Bb5 {[%emt 0:3:43]} 35. Bh3 {[%emt 0:3:51]} exf5 {[%emt 0:0:39]} 36. exf5 {[%emt 0:0:6]} Rxe3 {[%emt 0:0:43]} 37. Kxe3 {[%emt 0:0:5][%mdl 4096] Endgame KRB-KRB. Black is a pawn up.} Rd8 {[%emt 0:0:18]} 38. Bg4 {[%emt 0:2:46]} Rd7 $1 {[%emt 0:3:41]} (38... Rd3+ 39. Ke4 $17 )39. Rc8+ {[%emt 0:6:9]} Kf7 {[%emt 0:0:4]} 40. b4 {[%emt 0:4:29]} Kf6 {[%emt 0:2:10]} 41. Rf8+ {[%emt 0:55:5]} Rf7 {[%emt 0:50:41]} 42. Rb8 {[%emt 0:0:0]} Rc7 {[%emt 0:0:0]} 43. Rb6+ {[%emt 0:0:0]} Rc6 {[%emt 0:0:0]} 44. Rb7 {[%emt 0:0:0]} (44. Rxc6+ $17 Bxc6 45. Be2 )Rc3+ $19 {[%emt 0:0:0]} 45. Kf2 {[%emt 0:0:0]} Rd3 {[%emt 0:0:0]} 46. Bh5 {[%emt 0:0:0]} Rd7 {[%emt 0:0:0]} (46... Kxf5 47. Rf7+ Ke5 48. Rxg7 $15 )47. Rb8 {[%emt 0:0:0]} (47. Rxd7 $17 {keeps fighting.} Bxd7 48. Bf3 )Kxf5 {[%emt 0:0:0]} 48. Rf8+ {[%emt 0:0:0]} Ke5 {[%emt 0:0:0]} 49. Bg6 $2 {[%emt 0:0:0]} (49. Re8+ {was forced.} Kd4 50. Rc8 )Kd4 {[%emt 0:0:0]} 50. Rc8 {[%emt 0:0:0]} Rd6 {[%emt 0:0:0]} 51. Bh5 {[%emt 0:0:0]} Rc6 {[%emt 0:2:27]} 52. Rg8 {[%emt 0:0:0]} Rc7 {[%emt 0:0:0]} 53. Kg3 {[%emt 0:0:0]} (53. Rd8+ $142 Kc4 54. Rd1 Kxb4 55. Rb1+ Ka5 56. Rg1 )Kc3 {[%emt 0:0:0]} 54. Bd1 {[%emt 0:0:0]} Kxb4 {[%emt 0:0:0]} 55. Kg4 {[%emt 0:0:0]} a5 {[%emt 0:0:0]} 0-1